bitfinex/quotes_ETHUSD_20250123
["timestamp","ask_amount","ask_price","bid_price","bid_amount"]
[1737647621072,3.07036,3257.0,3256.7,0.7989]
[1737647621884,3.0704,3256.9,3256.7,0.7989]
[1737647622285,3.07049,3256.8,3256.7,0.7989]
[1737647622973,3.07049,3256.8,3256.0,0.389363]
[1737647622974,3.07081,3256.5,3256.1,0.793]
[1737647623179,3.07081,3256.5,3255.9,3.07126]
[1737647623180,3.07131,3256.0,3255.7,0.8258]
[1737647623779,3.07021,3257.1,3254.6,3.07257]
[1737647623780,3.07012,3257.2,3255.8,3.07138]
[1737647624117,3.0708,3256.5,3255.9,3.07134]
[1737647624268,3.07088,3256.4,3255.8,4.204318]
[1737647624473,3.0,3257.2,3255.8,0.8258]
[1737647624474,3.07118,3256.1,3255.8,0.8258]
[1737647624695,3.07097,3256.3,3255.8,0.8258]
[1737647624915,3.07107,3256.2,3255.8,0.8258]
[1737647625093,3.07057,3256.8,3255.8,0.8258]
[1737647625094,3.07125,3256.1,3255.8,0.8258]
[1737647625437,3.07134,3255.9,3255.8,0.8258]
[1737647625930,3.07125,3256.0,3255.8,0.8258]
[1737647626131,6.1425,3256.1,3255.8,0.8258]
[1737647626337,3.21486,3256.6,3255.8,0.8258]
[1737647626546,3.0,3256.5,3255.5,0.7969]
[1737647626703,3.07163,3255.6,3255.5,0.7969]
[1737647626880,3.07174,3255.5,3255.0,0.8725]
[1737647627235,3.07174,3255.5,3255.0,1.574203]
[1737647627542,3.07163,3255.6,3255.0,4.646393]
[1737647627836,3.07109,3256.2,3255.8,0.8459]
[1737647628016,3.07078,3256.5,3255.8,0.8459]
[1737647628185,3.07088,3256.4,3255.9,3.07126]
[1737647628381,3.07098,3256.3,3255.8,0.8459]
[1737647628746,3.07078,3256.5,3255.8,1.237636]
[1737647628947,3.0709,3256.4,3255.8,1.237636]
[1737647629232,3.07063,3256.7,3255.8,1.237636]
[1737647629742,3.07081,3256.5,3256.0,3.07122]
[1737647629884,3.07088,3256.4,3255.8,4.309016]
[1737647630235,3.07088,3256.4,3255.9,0.7380506]
[1737647630822,3.07075,3256.6,3255.9,3.8093906]
[1737647631023,0.2347,3257.3,3255.9,0.7380506]
[1737647631221,3.07058,3256.8,3256.1,3.07108]
[1737647631398,3.07052,3256.8,3256.2,3.07103]
[1737647631603,3.07052,3256.8,3256.1,6.14216]
[1737647631803,3.07052,3256.8,3256.1,3.07108]
[1737647632017,3.30436,3257.7,3256.2,0.8459]
[1737647632215,3.07032,3257.0,3256.4,3.0708]
[1737647632427,3.07032,3257.0,3256.4,3.76956]
[1737647633133,3.0704,3256.9,3256.4,0.69876]
[1737647633341,3.07062,3256.7,3256.2,0.8459]
[1737647634618,3.07093,3256.4,3256.2,0.8459]
[1737647635525,3.07028,3257.1,3256.5,3.07069]
[1737647635821,3.07024,3257.1,3256.5,3.377839]
[1737647636242,3.07024,3257.1,3256.5,0.307069]
[1737647636439,3.07024,3257.1,3256.5,3.377839]
[1737647636634,3.06985,3257.5,3256.6,0.8022]
[1737647637034,3.07004,3257.3,3256.7,3.07053]
[1737647637280,3.07004,3257.3,3256.8,3.07047]
[1737647637873,3.07006,3257.3,3256.6,0.8022]
[1737647638066,3.07005,3257.3,3256.6,0.8022]
[1737647638236,3.06988,3257.5,3257.0,3.07029]
[1737647638438,3.44460909,3258.0,3257.2,3.07003]
[1737647638439,6.13881,3258.0,3257.2,3.07003]
[1737647638746,3.06948,3257.9,3257.3,3.456913]
[1737647639178,3.30359,3258.5,3257.3,3.456913]
[1737647639179,3.0692,3258.2,3257.3,0.386953]
[1737647639343,0.37516909,3258.9,3257.3,0.386953]
[1737647639344,3.06851,3259.0,3258.3,0.7995]
[1737647639673,3.06861,3258.8,3258.3,0.7995]
[1737647639891,3.06917,3258.3,3257.4,3.06986]
[1737647640098,3.06942,3258.0,3257.3,3.86951]
[1737647640258,3.06974,3257.6,3257.3,0.7995]
[1737647640566,3.06956,3257.8,3257.3,0.7995]
[1737647640764,3.06981,3257.6,3257.3,0.7995]
[1737647640988,3.06966,3257.7,3257.3,0.7995]
[1737647641492,3.06962,3257.8,3257.3,0.7995]
[1737647641694,3.06993,3257.4,3257.3,0.7995]
[1737647641864,3.0703,3257.1,3256.7,0.7995]
[1737647642070,3.07042,3256.9,3256.7,0.7995]
[1737647642258,3.06987,3257.5,3256.0,3.07123]
[1737647642259,3.07069,3256.6,3256.1,0.7995]
[1737647642681,3.07052,3256.8,3256.2,3.07103]
[1737647642882,0.2347,3257.6,3256.7,3.07057]
[1737647643088,3.07027,3257.1,3256.4,3.87037]
[1737647643270,3.07027,3257.1,3256.4,0.7995]
[1737647643271,3.07041,3256.9,3256.4,0.7995]
[1737647643624,3.07027,3257.1,3256.4,3.87036]
[1737647644164,3.07061,3256.7,3256.4,0.7995]
[1737647644560,3.07054,3256.8,3256.4,0.7995]
[1737647644861,3.07008,3257.3,3256.4,0.7995]
[1737647644862,3.0,3257.3,3256.4,0.7995]
[1737647645059,3.07024,3257.1,3256.4,0.7995]
[1737647645260,3.06908,3258.4,3256.4,0.7995]
[1737647645261,3.0699,3257.5,3256.4,1.186554]
[1737647645464,0.2347,3258.3,3257.0,0.8465]
[1737647645659,0.2347,3258.6,3257.6,0.8342]
[1737647645870,0.2347,3258.6,3257.6,3.90387]
[1737647645871,3.06911,3258.3,3257.6,3.90387]
[1737647646070,3.06911,3258.3,3257.6,0.8342]
[1737647646270,3.06929,3258.1,3257.6,0.8342]
[1737647646478,3.06911,3258.3,3257.6,3.90393]
[1737647646700,3.06911,3258.3,3257.8,3.06955]
[1737647646900,3.06899,3258.4,3257.8,3.06955]
[1737647647095,3.06889,3258.5,3257.8,3.06955]
[1737647647296,3.06873,3258.7,3258.1,0.8674]
[1737647647516,3.0689,3258.5,3258.1,0.8674]
[1737647648211,3.069,3258.4,3258.1,0.8674]
[1737647648415,0.60986909,3259.4,3258.1,0.8674]
[1737647648620,3.06909,3258.3,3258.1,0.8674]
[1737647648909,3.06937,3258.0,3257.6,0.8402]
[1737647649112,3.0696,3257.8,3257.6,0.8402]
[1737647649295,3.07012,3257.3,3256.9,0.8402]
[1737647650013,3.06987,3257.5,3256.9,0.8402]
[1737647650014,3.07,3257.4,3256.9,0.8402]
[1737647650237,3.06977,3257.6,3257.0,3.07029]
[1737647651297,3.06965,3257.7,3256.9,1.531276]
[1737647651298,3.06984,3257.5,3256.9,1.531276]
[1737647651599,3.06984,3257.5,3256.9,4.601656]
[1737647651911,3.06965,3257.7,3257.0,3.0703]
[1737647652093,3.06965,3257.7,3257.0,4.1374996]
[1737647652503,3.06974,3257.6,3257.0,4.1374996]
[1737647652699,3.06988,3257.5,3257.0,1.0671996]
[1737647652900,3.06936,3258.0,3256.9,0.8402]
[1737647653105,3.07019,3257.2,3256.9,0.8402]
[1737647653914,3.07068,3256.6,3256.5,0.8504]
[1737647654117,6.47497513,3257.3,3255.4,0.8421]
[1737647654423,3.07148,3255.8,3255.4,0.8421]
[1737647654580,3.70967513,3256.9,3255.4,0.8421]
[1737647654581,3.07172,3255.5,3255.4,0.8421]
[1737647654782,3.07172,3255.5,3254.8,3.07236]
[1737647654783,3.0719,3255.4,3254.8,0.8421]
[1737647655002,3.07172,3255.5,3254.8,7.62604321]
[1737647655303,3.07155,3255.7,3254.8,7.62603321]
[1737647655501,3.07155,3255.7,3255.0,3.07214]
[1737647655697,3.07145,3255.8,3255.1,3.07208]
[1737647655962,3.07161,3255.7,3254.9,3.07229]
[1737647656099,3.07161,3255.7,3255.0,0.46259832]
[1737647656303,3.07161,3255.7,3255.0,3.53477832]
[1737647657651,3.07161,3255.7,3255.0,0.46259832]
[1737647658358,3.07161,3255.7,3255.0,3.53477832]
[1737647659460,3.07118,3256.1,3255.1,1.3755]
[1737647659640,3.07118,3256.1,3255.4,3.0718]
[1737647659841,3.07138,3255.9,3255.2,3.25578983]
[1737647660161,3.07169,3255.6,3255.1,0.8255]
[1737647661054,3.0718,3255.5,3255.1,0.8255]
[1737647661504,3.07192,3255.3,3255.1,0.8255]
[1737647661708,3.072,3255.2,3254.8,1.57579321]
[1737647661963,0.3189,3255.9,3254.3,0.8642]
[1737647662127,3.07236,3254.9,3254.3,0.8642]
[1737647662326,3.07184,3255.4,3254.3,0.8642]
[1737647662654,3.07245,3254.8,3254.3,0.8642]
[1737647663042,3.07222,3255.0,3254.3,0.8642]
[1737647663245,0.3189,3255.2,3254.3,3.93697]
[1737647663560,3.0721,3255.2,3254.4,3.466457]
[1737647663758,3.07238,3254.8,3254.3,0.8642]
[1737647664124,3.07246,3254.8,3254.3,0.8642]
[1737647664437,0.3189,3255.4,3254.0,0.8922]
[1737647664653,3.07311,3254.1,3253.2,0.8922]
[1737647664836,3.07333,3253.8,3253.2,0.8922]
[1737647665007,3.07333,3253.8,3253.2,1.288816]
[1737647665409,3.07276,3254.4,3253.2,1.288816]
[1737647665410,3.07351,3253.7,3253.2,1.288816]
[1737647665645,3.07276,3254.4,3253.2,0.8922]
[1737647665856,3.07329,3253.9,3253.2,0.8922]
[1737647666254,3.07285,3254.4,3253.3,0.55]
[1737647666446,3.07285,3254.4,3253.8,3.9496]
[1737647666648,3.07288,3254.3,3253.8,0.8763]
[1737647667274,3.07334,3253.8,3253.4,0.8763]
[1737647668152,3.07324,3253.9,3253.4,0.8763]
[1737647668460,3.0732,3254.0,3253.4,0.8763]
[1737647668966,3.07305,3254.1,3253.5,3.0736]
[1737647669275,3.07305,3254.1,3253.4,4.344959]
[1737647669483,3.0727,3254.5,3253.9,3.07322]
[1737647669646,3.07255,3254.7,3254.1,0.8263]
[1737647669851,3.07255,3254.7,3254.1,4.289282]
[1737647670155,3.07229,3254.9,3254.3,3.07278]
[1737647670980,3.07229,3254.9,3254.2,3.07294]
[1737647671150,3.07229,3254.9,3254.1,1.216252]
[1737647671151,3.07194,3255.3,3254.5,3.07265]
[1737647671353,3.07205,3255.2,3254.6,3.92525]
[1737647671665,3.07205,3255.2,3254.6,0.8527]
[1737647672190,6.14332,3255.6,3254.6,0.8527]
[1737647672421,0.3189,3256.1,3254.7,0.8827]
[1737647672712,3.07104,3256.3,3255.8,0.8827]
[1737647673055,3.07132,3256.0,3255.8,0.8827]
[1737647673313,0.3189,3256.7,3255.8,0.8827]
[1737647673601,3.07131,3256.0,3255.8,0.8827]
[1737647673858,3.07139,3255.9,3255.4,0.8827]
[1737647674000,3.07131,3256.0,3255.4,3.95447]
[1737647674199,0.3189,3256.7,3255.4,3.95447]
[1737647674200,3.07087,3256.5,3255.4,1.585337]
[1737647674546,0.3189,3256.7,3255.7,3.0715]
[1737647674753,3.07097,3256.3,3255.7,3.0715]
[1737647674914,3.07086,3256.5,3255.9,3.07128]
[1737647675270,3.07069,3256.6,3256.0,3.95393]
[1737647675406,3.07069,3256.6,3256.0,0.8827]
[1737647675607,3.07083,3256.5,3256.0,0.8827]
[1737647676095,3.07093,3256.4,3256.0,0.8827]
[1737647676300,3.07097,3256.3,3256.0,0.8827]
[1737647676545,6.14168,3256.5,3256.0,0.8827]
[1737647676748,3.0709,3256.4,3256.0,0.8827]
[1737647677040,3.07058,3256.8,3256.0,3.95393]
[1737647677224,3.07078,3256.5,3256.0,0.8827]
[1737647677397,3.07075,3256.6,3256.0,0.8827]
[1737647677867,3.07075,3256.6,3256.0,3.95394]
[1737647678161,3.07018,3257.2,3256.0,1.278101]
[1737647678331,3.07009,3257.3,3256.6,3.96057]
[1737647678532,3.0,3257.2,3256.6,0.8899]
[1737647678732,3.07039,3257.0,3256.6,0.8899]
[1737647679456,6.07016,3257.2,3256.6,0.8899]
[1737647679752,3.07009,3257.3,3256.6,3.96054]
[1737647679954,3.07025,3257.1,3256.6,0.8899]
[1737647680327,3.3189,3257.7,3256.6,0.8899]
[1737647680530,3.07085,3256.5,3255.9,0.8642]
[1737647680716,3.07085,3256.5,3255.9,1.564903]
[1737647681049,3.07085,3256.5,3255.9,4.636233]
[1737647681287,3.07065,3256.7,3256.1,3.07114]
[1737647681477,3.07045,3256.9,3256.2,3.07104]
[1737647681623,3.07066,3256.7,3256.0,3.07119]
[1737647681818,3.07085,3256.5,3256.0,0.7707393]
[1737647682121,3.07085,3256.5,3255.9,3.93552]
[1737647682471,3.07118,3256.1,3255.9,0.8642]
[1737647682622,3.07116,3256.1,3255.9,0.8642]
[1737647683144,3.07125,3256.0,3255.3,0.8158]
[1737647683346,3.07137,3255.9,3255.3,3.88771]
[1737647683655,3.07137,3255.9,3255.4,3.0]
[1737647683841,3.0711,3256.2,3255.3,1.511762]
[1737647684046,3.07127,3256.0,3255.4,3.07175]
[1737647684646,0.3189,3256.7,3255.6,3.07153]
[1737647684850,0.3189,3257.0,3255.7,3.91001]
[1737647685052,3.0709,3256.4,3255.7,3.90995]
[1737647685261,3.07102,3256.3,3255.7,3.90995]
[1737647685579,3.07118,3256.1,3255.7,0.8385]
[1737647685729,3.07099,3256.3,3255.7,0.8385]
[1737647686171,0.3189,3257.0,3255.7,0.8385]
[1737647686172,3.07063,3256.7,3255.7,0.8385]
[1737647686368,0.3189,3257.0,3255.0,3.0]
[1737647686369,3.07038,3257.0,3256.5,3.07076]
[1737647686578,3.07046,3256.9,3256.4,0.8349]
[1737647686786,3.07028,3257.1,3256.4,3.90569]
[1737647686930,3.07028,3257.1,3256.4,0.8349]
[1737647687276,3.07037,3257.0,3256.4,0.8349]
[1737647687478,3.07002,3257.3,3256.5,3.0707]
[1737647687679,3.07017,3257.2,3256.6,3.0706]
[1737647687842,3.07033,3257.0,3256.4,1.225489]
[1737647688047,6.14057,3257.1,3256.4,4.296289]
[1737647688461,3.07027,3257.1,3256.4,4.296289]
[1737647688665,3.07035,3257.0,3256.4,4.296289]
[1737647688984,3.07035,3257.0,3256.4,3.9057]
[1737647689157,3.07027,3257.1,3256.4,3.9057]
[1737647689463,3.07027,3257.1,3256.5,3.07075]
[1737647689767,3.07034,3257.0,3256.4,3.90571]
[1737647689963,3.07027,3257.1,3256.4,3.90571]
[1737647690170,3.07027,3257.1,3256.5,3.07074]
[1737647690470,3.07061,3256.7,3256.2,3.07106]
[1737647690630,3.07061,3256.7,3256.2,0.699377]
[1737647690631,3.07069,3256.6,3256.2,0.699377]
[1737647690971,3.07044,3256.9,3256.2,0.699377]
[1737647691167,3.0706,3256.7,3256.2,0.699377]
[1737647691366,3.07044,3256.9,3256.2,3.07104]
[1737647691677,3.07078,3256.5,3256.0,3.9227]
[1737647691883,3.0,3257.2,3256.0,0.8515]
[1737647692035,0.3191,3256.7,3255.6,0.8515]
[1737647692237,3.07141,3255.9,3255.6,0.8515]
[1737647692441,3.07083,3256.5,3255.2,0.9005]
[1737647692442,3.07189,3255.4,3255.2,0.9005]
[1737647692656,0.3191,3255.7,3254.8,0.9005]
[1737647692846,3.07229,3254.9,3254.2,0.9005]
[1737647693075,3.07186,3255.4,3254.3,0.4363422]
[1737647693347,3.07276,3254.4,3254.2,0.9005]
[1737647693764,3.07276,3254.4,3253.8,0.8718]
[1737647694564,3.07259,3254.6,3253.8,3.94512]
[1737647695047,0.3191,3255.3,3253.8,0.8718]
[1737647695254,3.07214,3255.1,3254.2,3.88925]
[1737647695450,3.07166,3255.6,3254.5,3.07263]
[1737647695661,3.07168,3255.6,3255.0,0.8163]
[1737647695889,3.07168,3255.6,3255.0,3.88849]
[1737647696096,0.3191,3256.1,3255.0,0.8163]
[1737647696255,3.07175,3255.5,3255.0,0.8163]
[1737647696586,3.07193,3255.3,3255.0,0.8163]
[1737647696886,3.07175,3255.5,3255.0,0.8163]
[1737647697281,3.07197,3255.3,3255.0,0.8163]
[1737647697655,3.0,3255.9,3254.4,3.93485]
[1737647697853,3.072,3255.2,3254.4,0.8621]
[1737647698175,3.07206,3255.2,3254.5,3.0726]
[1737647698395,3.07184,3255.4,3254.7,3.07247]
[1737647698692,3.072,3255.2,3254.5,3.46606]
[1737647698993,3.072,3255.2,3253.5,5.28461]
[1737647698994,0.3191,3255.5,3253.8,3.07328]
[1737647699151,0.3191,3255.5,3252.3,12.19472]
[1737647699152,3.07284,3254.4,3253.9,0.8917]
[1737647699355,3.07295,3254.2,3253.9,0.8917]
[1737647699664,3.07304,3254.2,3253.9,0.8917]
[1737647699863,3.07297,3254.2,3253.5,3.93021]
[1737647700066,3.07307,3254.1,3253.5,4.63061]
[1737647700256,3.07323,3254.0,3253.5,0.8566]
[1737647700457,3.07323,3254.0,3253.1,3.07397]
[1737647700651,3.07323,3254.0,3253.2,0.8566]
[1737647700954,0.3191,3254.7,3253.2,0.8566]
[1737647700955,3.07358,3253.6,3253.2,0.8566]
[1737647701155,3.07325,3253.9,3253.2,0.8566]
[1737647701394,3.07349,3253.7,3253.2,0.8566]
[1737647701694,3.07349,3253.7,3253.3,35.0]
[1737647701850,3.07349,3253.7,3253.2,0.8566]
[1737647702055,3.07325,3253.9,3253.2,0.8566]
[1737647702254,0.55,3254.1,3252.9,35.0]
[1737647702485,3.07373,3253.4,3252.8,0.8566]
[1737647702654,3.3191,3254.2,3252.8,0.8566]
[1737647702868,3.07371,3253.4,3252.8,0.8566]
[1737647703072,3.07343,3253.7,3252.9,0.393089]
[1737647703254,3.07417,3252.9,3251.9,6.2764221]
[1737647703451,3.07411,3253.0,3252.0,0.8566]
[1737647703676,3.07392,3253.2,3252.4,3.07461]
[1737647703892,3.07367,3253.5,3252.5,3.93114]
[1737647704091,3.07377,3253.4,3252.7,3.0743]
[1737647704265,0.3191,3253.8,3252.5,0.8566]
[1737647704266,3.3191,3253.8,3252.5,3.93114]
[1737647704465,3.07378,3253.4,3252.7,3.07435]
[1737647704796,3.07386,3253.3,3252.6,3.10202562]
[1737647704982,3.07346,3253.7,3253.2,0.8566]
[1737647705187,3.07352,3253.6,3253.2,0.8566]
[1737647705358,3.07341,3253.8,3253.2,0.8566]
[1737647705559,3.07341,3253.8,3253.2,3.93048]
[1737647705758,3.07341,3253.8,3253.3,35.0]
[1737647705980,3.0,3254.2,3253.3,35.0]
[1737647706196,3.0737,3253.4,3253.3,35.0]
[1737647706373,0.3191,3253.8,3251.8,0.8681]
[1737647706565,0.3191,3253.8,3252.3,3.07471]
[1737647706768,3.07396,3253.2,3252.4,38.07455]
[1737647706975,3.07406,3253.1,3252.4,38.07455]
[1737647707461,3.07406,3253.1,3252.5,3.07451]
[1737647707662,3.07406,3253.1,3252.5,3.97071]
[1737647707892,3.07345,3253.7,3253.1,3.07397]
[1737647708057,3.07345,3253.7,3252.5,3.97072]
[1737647708058,0.3191,3253.8,3252.5,0.8962]
[1737647708266,3.0735,3253.7,3253.1,3.07396]
[1737647708582,3.0735,3253.7,3252.3,0.307471]
[1737647708583,0.3191,3254.2,3253.3,0.8236]
[1737647708780,3.07333,3253.8,3253.3,0.8236]
[1737647709122,3.07342,3253.8,3253.3,0.8236]
[1737647709598,3.07321,3254.0,3253.5,3.07361]
[1737647709807,3.07321,3254.0,3253.4,35.0]
[1737647709966,3.07321,3254.0,3253.4,38.07362]
[1737647710166,3.07321,3254.0,3253.4,41.17564562]
[1737647710367,3.07269,3254.5,3253.8,3.07332]
[1737647710597,3.39142,3254.9,3254.1,0.8936]
[1737647710764,3.07255,3254.7,3254.1,0.8936]
[1737647711160,3.07293,3254.3,3253.6,3.07347]
[1737647711396,3.07302,3254.2,3253.7,0.8936]
[1737647711903,3.07314,3254.0,3253.7,0.8936]
[1737647712476,3.0734,3253.8,3253.4,0.8136]
[1737647712692,3.07375,3253.4,3252.9,0.8136]
[1737647713003,3.07368,3253.5,3252.9,0.8136]
[1737647713308,3.07323,3253.9,3253.0,3.07399]
[1737647713480,3.07323,3253.9,3253.3,3.07373]
[1737647713796,0.3191,3254.1,3252.9,4.583921]
[1737647713997,3.07364,3253.5,3252.9,1.509811]
[1737647714209,3.07408,3253.1,3252.5,3.9178]
[1737647714380,3.07432,3252.8,3252.5,0.8433]
[1737647714577,3.07439,3252.7,3252.1,3.95095]
[1737647714778,3.07389,3253.2,3252.1,0.8761]
[1737647714977,3.07444,3252.7,3252.1,0.8761]
[1737647715185,3.07449,3252.6,3252.1,3.95102]
[1737647715403,3.07444,3252.7,3252.1,3.95102]
[1737647715784,3.07393,3253.2,3252.2,3.07478]
[1737647715986,3.0741,3253.0,3252.1,1.578706]
[1737647716205,3.0741,3253.0,3252.1,0.8761]
[1737647716405,3.0741,3253.0,3252.3,3.07466]
[1737647716606,3.0741,3253.0,3252.1,3.95101]
[1737647716797,3.07434,3252.8,3252.1,3.95101]
[1737647717104,3.07414,3253.0,3252.3,3.07474]
[1737647717413,3.07414,3253.0,3252.4,3.382064]
[1737647717611,3.07414,3253.0,3252.5,3.07453]
[1737647717775,3.07423,3252.9,3252.4,0.307474]
[1737647717978,3.07414,3253.0,3252.4,0.307474]
[1737647718181,3.07427,3252.8,3252.4,0.307474]
[1737647718491,0.3191,3253.3,3251.8,3.07517]
[1737647718718,3.07389,3253.2,3252.0,3.07496]
[1737647719074,3.07443,3252.7,3252.1,3.07492]
[1737647719591,3.07419,3252.9,3252.2,3.07477]
[1737647719592,3.07427,3252.8,3252.2,3.07477]
[1737647719877,3.07399,3253.1,3252.4,3.07457]
[1737647720078,3.07449,3252.6,3252.0,3.07495]
[1737647720385,3.07466,3252.4,3251.8,38.07515]
[1737647720581,0.3146,3252.8,3251.2,0.8761]
[1737647720820,3.07548,3251.6,3251.2,0.8761]
[1737647721404,0.3146,3253.1,3251.2,0.8761]
[1737647721713,3.07509,3252.0,3251.2,0.8761]
[1737647721883,3.07509,3252.0,3251.4,3.07558]
[1737647722086,3.07484,3252.2,3251.5,3.07549]
[1737647722314,3.07484,3252.2,3251.6,3.07538]
[1737647722494,3.07497,3252.1,3251.5,3.07549]
[1737647722878,0.3146,3253.1,3251.3,0.395196]
[1737647723214,3.07466,3252.4,3251.9,0.8475]
[1737647723390,3.07438,3252.7,3251.9,3.92254]
[1737647723590,3.07438,3252.7,3252.0,3.07501]
[1737647723792,3.07419,3252.9,3251.9,0.8475]
[1737647723986,3.07419,3252.9,3252.3,3.07472]
[1737647724181,3.07416,3253.0,3252.3,3.689685]
[1737647724384,0.3146,3253.1,3252.2,35.0]
[1737647724735,3.07484,3252.2,3251.9,0.8475]
[1737647724880,3.07484,3252.2,3251.6,3.89307]
[1737647725084,3.07467,3252.4,3251.7,38.07524]
[1737647725320,3.07408,3253.0,3252.1,3.07484]
[1737647725615,3.07439,3252.7,3252.2,0.307484]
[1737647725980,3.07408,3253.0,3251.7,3.07527]
[1737647726219,3.07494,3252.1,3251.6,0.8177]
[1737647726517,3.07474,3252.3,3251.6,0.8177]
[1737647726718,3.07455,3252.5,3251.6,0.8177]
[1737647727015,3.07487,3252.2,3251.6,0.8177]
[1737647727186,0.3146,3252.6,3251.6,0.8177]
[1737647727390,3.07489,3252.2,3251.6,0.8177]
[1737647727818,3.07489,3252.2,3251.6,3.89308]
[1737647728118,3.07468,3252.4,3251.6,1.51455]
[1737647728300,3.07468,3252.4,3251.7,3.07524]
[1737647728483,3.07412,3253.0,3251.9,3.07506]
[1737647728484,3.07431,3252.8,3251.9,3.07506]
[1737647728683,3.07452,3252.6,3251.9,3.07506]
[1737647729092,3.07478,3252.3,3251.6,0.8177]
[1737647729293,3.07478,3252.3,3251.7,3.07523]
[1737647729610,3.07485,3252.2,3251.6,0.8177]
[1737647729809,3.07485,3252.2,3251.6,3.89309]
[1737647730010,3.07499,3252.1,3251.6,0.8177]
[1737647730207,0.3146,3252.7,3251.6,0.8177]
[1737647730522,3.38865,3253.1,3251.6,1.207017]
[1737647730695,3.38865,3253.1,3252.0,3.07497]
[1737647730696,3.07443,3252.7,3252.0,3.07497]
[1737647731195,3.07443,3252.7,3252.1,3.07488]
[1737647731412,3.07447,3252.6,3252.0,3.07497]
[1737647731614,3.07408,3253.0,3252.2,0.8676]
[1737647731988,0.3146,3253.1,3252.2,0.8676]
[1737647732320,3.07469,3252.4,3251.8,3.94276]
[1737647732523,3.07463,3252.5,3251.9,3.469396]
[1737647732821,3.07454,3252.6,3251.9,3.07512]
[1737647733190,3.07425,3252.9,3252.3,3.07474]
[1737647733404,3.07435,3252.8,3252.2,3.07483]
[1737647733784,3.0741,3253.0,3252.4,3.07462]
[1737647733984,3.0741,3253.0,3252.4,3.07457]
[1737647734185,3.07421,3252.9,3252.4,3.95167]
[1737647734731,3.07477,3252.3,3251.8,0.8881]
[1737647734930,3.07484,3252.2,3251.8,0.8881]
[1737647735122,3.0744,3252.7,3251.8,1.28444]
[1737647735314,3.0744,3252.7,3251.9,3.07509]
[1737647735625,3.07473,3252.4,3251.8,0.8881]
[1737647735805,0.3146,3253.0,3251.8,3.9633]
[1737647735985,3.07462,3252.5,3251.8,3.9633]
[1737647736343,3.07466,3252.4,3251.8,3.9633]
[1737647736621,3.07457,3252.5,3251.8,4.667109]
[1737647736825,3.07457,3252.5,3251.9,3.07505]
[1737647737319,3.07443,3252.7,3251.8,4.667159]
[1737647737523,3.07418,3252.9,3252.0,3.07496]
[1737647737739,3.0745,3252.6,3252.0,3.07496]
[1737647737935,3.0745,3252.6,3252.1,0.307496]
[1737647738904,3.0746,3252.5,3252.1,0.307496]
[1737647739238,3.07478,3252.3,3251.8,1.591969]
[1737647739446,3.07478,3252.3,3251.8,0.8881]
[1737647739628,3.07498,3252.1,3251.8,0.8881]
[1737647739815,3.07498,3252.1,3251.5,0.8153]
[1737647740214,3.07512,3251.9,3251.5,0.8153]
[1737647740399,3.07524,3251.8,3251.5,0.8153]
[1737647740601,3.07459,3252.5,3251.2,3.07576]
[1737647740602,3.0755,3251.5,3251.2,0.8948]
[1737647741439,0.3146,3251.9,3251.2,0.8948]
[1737647741440,3.0752,3251.9,3251.3,3.07566]
[1737647741604,3.0752,3251.9,3251.3,3.780288]
[1737647741958,3.07483,3252.3,3251.6,3.07536]
[1737647742116,3.07502,3252.1,3251.4,3.07557]
[1737647743339,3.0751,3252.0,3251.4,3.07557]
[1737647743701,3.07502,3252.1,3251.4,3.07552]
[1737647744003,3.07497,3252.1,3251.4,6.17754562]
[1737647744305,3.07497,3252.1,3251.4,38.07552]
[1737647744609,3.07498,3252.1,3251.4,3.07553]
[1737647744825,3.07504,3252.0,3251.4,3.07553]
[1737647745023,3.07504,3252.0,3251.4,38.07553]
[1737647745225,3.07504,3252.0,3251.4,35.0]
[1737647745426,3.07504,3252.0,3251.4,38.10202562]
[1737647745627,3.07485,3252.2,3251.6,3.0754]
[1737647746203,3.07485,3252.2,3251.5,3.07547]
[1737647746440,3.07514,3251.9,3251.4,38.10202562]
[1737647746623,3.07495,3252.1,3251.5,3.07544]
[1737647746835,3.07489,3252.2,3251.6,3.69308656]
[1737647747209,3.07489,3252.2,3251.7,0.8853]
[1737647747459,3.07471,3252.4,3251.7,0.8853]
[1737647747755,3.07471,3252.4,3251.8,3.07516]
[1737647747907,3.07446,3252.6,3251.7,3.96059]
[1737647748100,3.07477,3252.3,3251.8,2.24165868]
[1737647748316,3.07477,3252.3,3251.7,3.96059]
[1737647748317,3.07417,3252.9,3251.9,3.07507]
[1737647748657,4.439277,3254.0,3251.9,3.07507]
[1737647748658,3.07396,3253.2,3252.5,3.07453]
[1737647748949,3.07396,3253.2,3252.3,3.94018]
[1737647749150,3.07405,3253.1,3252.5,3.07447]
[1737647749358,3.07419,3252.9,3252.3,0.8655]
[1737647749503,0.3165,3253.3,3252.3,0.8655]
[1737647749504,3.07455,3252.6,3252.3,0.8655]
[1737647749856,3.07455,3252.6,3251.9,38.07506]
[1737647750162,3.07467,3252.4,3251.7,0.8435]
[1737647750312,3.07456,3252.5,3251.7,3.91875]
[1737647750655,3.07456,3252.5,3251.9,3.07506]
[1737647751211,3.0744,3252.7,3252.0,3.07496]
[1737647751551,3.0745,3252.6,3252.0,3.07496]
[1737647751707,3.07433,3252.8,3252.1,3.382416]
[1737647752126,3.07448,3252.6,3252.1,0.307496]